bitfinex-derivatives/quotes_SOLF0:USTF0_20260316
["timestamp","ask_amount","ask_price","bid_price","bid_amount"]
[1773671447542,9.12735509,92.67,92.56,5.96516523]
[1773671447746,9.12735509,92.67,92.562,5.96516523]
[1773671448049,9.12735509,92.67,92.564,5.96516523]
[1773671448244,9.12735509,92.67,92.566,5.95018891]
[1773671448445,9.12735509,92.67,92.568,5.95018891]
[1773671448650,107.857,92.701,92.536,33.64]
[1773671448651,9.12735509,92.649,92.536,33.64]
[1773671448848,9.12735509,92.649,92.538,5.95018891]
[1773671449048,9.12735509,92.649,92.54,5.9160556]
[1773671449256,9.12735509,92.649,92.542,5.9160556]
[1773671449456,9.12735509,92.649,92.544,5.9160556]
[1773671449654,9.12735509,92.649,92.546,5.9160556]
[1773671449953,118.466,92.754,92.548,5.9160556]
[1773671449954,9.12735509,92.699,92.548,5.9160556]
[1773671450252,9.12735509,92.699,92.55,5.88921613]
[1773671450453,9.12735509,92.699,92.561,5.88921613]
[1773671450653,9.12735509,92.699,92.483,32.02]
[1773671450654,9.12735509,92.684,92.563,5.88921613]
[1773671450853,9.12735509,92.684,92.565,5.88921613]
[1773671451055,9.12735509,92.684,92.567,5.86272134]
[1773671451258,9.12735509,92.684,92.569,5.86272134]
[1773671451457,9.12735509,92.684,92.54,22.14843309]
[1773671451458,9.12735509,92.699,92.571,5.86272134]
[1773671451655,9.12735509,92.699,92.573,5.86272134]
[1773671451960,9.12735509,92.699,92.575,5.86272134]
[1773671452150,9.12735509,92.699,92.54,22.14843309]
[1773671452151,9.12735509,92.699,92.577,5.84078431]
[1773671452351,9.12735509,92.699,92.579,3.7888217]
[1773671452554,3.86653889,92.679,92.511,3.7888217]
[1773671452756,3.86653889,92.679,92.513,3.7888217]
[1773671452956,3.86653889,92.679,92.541,3.7888217]
[1773671453155,3.86653889,92.679,92.543,3.7888217]
[1773671453358,3.86653889,92.669,92.545,3.7888217]
[1773671453664,3.86653889,92.669,92.547,3.7888217]
[1773671453853,3.86653889,92.669,92.549,3.7888217]
[1773671454156,3.86653889,92.669,92.551,3.94128438]
[1773671454353,3.86653889,92.669,92.553,3.94128438]
[1773671454553,3.86653889,92.669,92.555,3.94128438]
[1773671454753,3.86653889,92.669,92.557,3.94128438]
[1773671454962,3.86653889,92.669,92.559,3.94128438]
[1773671455258,3.86653889,92.669,92.561,3.94128438]
[1773671455464,3.86653889,92.669,92.563,3.94128438]
[1773671455657,3.86653889,92.669,92.565,3.94128438]
[1773671455858,3.86653889,92.669,92.567,3.94128438]
[1773671456064,3.86653889,92.669,92.569,3.94128438]
[1773671456259,3.86653889,92.669,92.571,3.94128438]
[1773671456563,3.81395896,92.629,92.537,33.62]
[1773671456760,3.81395896,92.629,92.536,3.94128438]
[1773671457665,22.14843309,92.62,92.537,33.62]
[1773671457964,107.905,92.66,92.536,3.94128438]
[1773671457965,3.81395896,92.619,92.536,3.94128438]
[1773671458166,3.81395896,92.619,92.537,33.62]
[1773671458374,3.81395896,92.639,92.471,32.02]
[1773671458560,3.81395896,92.639,92.513,3.94128438]
[1773671459068,3.81395896,92.663,92.521,3.94128438]
[1773671459775,3.81395896,92.663,92.523,3.94128438]
[1773671460068,3.81395896,92.663,92.525,3.94128438]
[1773671460266,3.81395896,92.663,92.527,3.94128438]
[1773671460668,22.14843309,92.63,92.527,3.94128438]
[1773671460969,3.81395896,92.629,92.529,3.94128438]
[1773671461159,3.81395896,92.629,92.53,37.56128438]
[1773671461361,3.81395896,92.629,92.532,3.94128438]
[1773671461563,3.81395896,92.629,92.534,3.94128438]
[1773671462062,3.81395896,92.629,92.535,37.56128438]
[1773671462261,3.81395896,92.629,92.537,3.94128438]
[1773671462458,3.81395896,92.629,92.539,3.94128438]
[1773671462662,3.81395896,92.629,92.541,3.94128438]
[1773671462863,3.81395896,92.684,92.543,3.94128438]
[1773671463062,3.81395896,92.684,92.545,3.94128438]
[1773671463270,3.81395896,92.684,92.547,3.94128438]
[1773671463867,3.81395896,92.684,92.549,3.94128438]
[1773671464164,107.848,92.709,92.551,3.94128438]
[1773671464165,3.81395896,92.669,92.551,3.94128438]
[1773671464369,3.81395896,92.639,92.553,3.94128438]
[1773671464770,3.81395896,92.639,92.543,33.62]
[1773671464965,3.81395896,92.629,92.543,33.62]
[1773671465166,3.81395896,92.629,92.528,3.94128438]
[1773671465364,107.904,92.661,92.384,108.227]
[1773671465365,3.81395896,92.609,92.468,3.94128438]
[1773671465568,3.81395896,92.609,92.491,3.94128438]
[1773671465971,3.81395896,92.639,92.491,3.94128438]
[1773671466163,3.81395896,92.639,92.49,33.62]
[1773671466164,3.81395896,92.639,92.501,3.94128438]
[1773671466373,3.81395896,92.67,92.531,3.94128438]
[1773671466668,3.81395896,92.695,92.531,3.94128438]
[1773671466864,3.81395896,92.695,92.551,3.94128438]
[1773671467063,3.81395896,92.695,92.55,33.17982095]
[1773671467064,3.81395896,92.695,92.553,3.94128438]
[1773671467267,3.81395896,92.72,92.581,3.94128438]
[1773671467764,3.81395896,92.759,92.581,3.94128438]
[1773671467968,3.81395896,92.759,92.583,3.94128438]
[1773671468167,3.81395896,92.729,92.585,3.94128438]
[1773671468564,3.81395896,92.729,92.587,3.94128438]
[1773671468766,33.17982095,92.76,92.577,189.96]
[1773671468767,3.81395896,92.759,92.611,3.94128438]
[1773671468964,3.81395896,92.81,92.671,3.94128438]
[1773671469263,3.81395896,92.859,92.742,3.94128438]
[1773671469566,3.81395896,92.839,92.744,3.94128438]
[1773671469760,3.81395896,92.839,92.745,33.62]
[1773671469960,3.81395896,92.839,92.745,37.56128438]
[1773671470167,3.81395896,92.839,92.746,33.62]
[1773671470473,3.81395896,92.839,92.747,3.94128438]
[1773671471061,3.81395896,92.839,92.723,3.94128438]
[1773671471468,3.81395896,92.809,92.678,3.94128438]
[1773671471667,3.81395896,92.779,92.678,3.94128438]
[1773671472173,3.81395896,92.805,92.68,3.94128438]
[1773671472472,3.81395896,92.805,92.682,3.94128438]
[1773671472671,3.81395896,92.805,92.698,3.94128438]
[1773671472969,3.81395896,92.832,92.698,3.94128438]
[1773671473272,3.81395896,92.832,92.719,3.94128438]
[1773671473773,3.81395896,92.832,92.721,3.94128438]
[1773671474268,3.81395896,92.789,92.663,3.94128438]
[1773671474469,3.81395896,92.789,92.675,3.94128438]
[1773671475365,3.81395896,92.789,92.676,33.62]
[1773671475672,3.81395896,92.789,92.622,189.84]
[1773671475673,3.81395896,92.789,92.677,3.94128438]
[1773671475871,3.81395896,92.789,92.679,3.94128438]
[1773671476069,19.381,92.859,92.681,3.94128438]
[1773671476070,3.81395896,92.816,92.681,3.94128438]
[1773671476370,3.81395896,92.816,92.683,3.94128438]
[1773671476565,3.81395896,92.816,92.67,33.17982095]
[1773671476566,3.81395896,92.816,92.687,3.94128438]
[1773671477077,36.99377991,92.78,92.687,3.94128438]
[1773671477375,3.81395896,92.819,92.687,3.94128438]
[1773671477570,3.81395896,92.819,92.706,3.94128438]
[1773671477764,3.81395896,92.857,92.706,3.94128438]
[1773671478473,3.81395896,92.857,92.733,3.94128438]
[1773671478674,3.81395896,92.857,92.735,3.94128438]
[1773671478873,3.81395896,92.857,92.737,3.94128438]
[1773671479177,3.81395896,92.857,92.743,3.94128438]
[1773671479377,3.81395896,92.857,92.745,3.94128438]
[1773671479678,3.81395896,92.857,92.747,3.94128438]
[1773671479874,3.81395896,92.839,92.728,33.62]
[1773671480081,3.81395896,92.839,92.73,3.94128438]
[1773671480376,3.81395896,92.839,92.732,3.94128438]
[1773671480575,3.81395896,92.839,92.734,3.94128438]
[1773671480775,3.81395896,92.839,92.736,3.94128438]
[1773671480977,3.81395896,92.839,92.738,3.94128438]
[1773671481183,3.81395896,92.839,92.74,3.94128438]
[1773671481383,3.81395896,92.839,92.741,33.62]
[1773671481778,3.81395896,92.839,92.74,3.94128438]
[1773671481779,3.81395896,92.839,92.742,33.62]
[1773671481976,3.81395896,92.839,92.743,3.94128438]
[1773671482275,3.81395896,92.714,92.571,33.62]
[1773671482470,3.81395896,92.714,92.495,189.72]
[1773671482671,3.81395896,92.714,92.53,33.17982095]
[1773671483072,3.81395896,92.714,92.531,32.02]
[1773671483276,3.81395896,92.714,92.533,32.02]
[1773671483477,3.81395896,92.714,92.534,33.62]
[1773671483779,3.81395896,92.714,92.495,189.72]
[1773671483780,3.81395896,92.714,92.535,33.62]
[1773671483982,3.81395896,92.714,92.54,33.17982095]
[1773671484282,3.81395896,92.714,92.543,1.20650591]
[1773671484679,3.81395896,92.714,92.551,1.20650591]
[1773671484982,3.81395896,92.714,92.552,1.12989624]
[1773671485184,3.81395896,92.714,92.571,1.12989624]
[1773671485380,3.81395896,92.714,92.573,1.12989624]
[1773671485574,3.58995511,92.749,92.573,1.12989624]
[1773671485777,3.58995511,92.749,92.574,1.12989624]
[1773671485980,3.58995511,92.719,92.575,33.62]
[1773671486186,3.58995511,92.719,92.576,1.13644709]
[1773671486481,3.58995511,92.719,92.578,1.13644709]
[1773671486682,3.58995511,92.719,92.58,1.13644709]
[1773671486882,3.58995511,92.719,92.582,1.13644709]
[1773671487078,3.58995511,92.719,92.584,1.1045]
[1773671487283,3.58995511,92.719,92.586,1.1045]
[1773671487484,3.58995511,92.719,92.588,1.1045]
[1773671487684,3.58995511,92.719,92.59,1.1045]
[1773671487878,3.58995511,92.719,92.592,1.1045]
[1773671488079,9.83490257,92.746,92.592,1.1045]
[1773671488080,3.58995511,92.689,92.592,1.1045]
[1773671488281,3.58995511,92.689,92.594,1.0925156]
[1773671488480,3.58995511,92.689,92.596,1.0925156]
[1773671488787,3.58995511,92.689,92.597,33.64]
[1773671489085,3.58995511,92.689,92.598,33.64]
[1773671489386,3.58995511,92.685,92.584,33.64]
[1773671489585,33.17982095,92.63,92.536,1.10780156]
[1773671489783,107.863,92.696,92.546,13.41386685]
[1773671489979,33.17982095,92.68,92.548,13.41386685]
[1773671490283,19.413,92.707,92.553,13.41441854]
[1773671490482,19.413,92.707,92.555,13.41441854]
[1773671490683,107.851,92.706,92.555,13.41441854]
[1773671490883,9.83646838,92.705,92.557,13.41441854]
[1773671491084,9.83646838,92.705,92.559,13.41429699]
[1773671491287,33.17982095,92.74,92.581,13.41429699]
[1773671491581,33.17982095,92.74,92.583,13.41429699]
[1773671491786,33.17982095,92.74,92.585,13.41429699]
[1773671491989,33.17982095,92.74,92.587,13.43626726]
[1773671492386,33.17982095,92.71,92.589,13.43626726]
[1773671492582,33.17982095,92.71,92.591,13.43626726]
[1773671492782,33.17982095,92.71,92.593,13.43626726]
[1773671492984,33.17982095,92.71,92.595,13.43626726]
[1773671493178,33.17982095,92.71,92.597,13.49028255]
[1773671493381,33.17982095,92.71,92.596,33.64]
[1773671493382,33.17982095,92.71,92.599,13.49028255]
[1773671493582,33.17982095,92.68,92.551,13.49028255]
[1773671493782,33.17982095,92.68,92.553,13.49028255]
[1773671493986,33.17982095,92.68,92.555,13.49028255]
[1773671494292,33.17982095,92.68,92.557,13.46372624]
[1773671494484,33.17982095,92.68,92.559,13.46372624]
[1773671494681,19.408,92.729,92.561,13.46372624]
[1773671494682,33.17982095,92.71,92.561,13.46372624]
[1773671496192,33.17982095,92.72,92.563,13.4706807]
[1773671496385,33.17982095,92.75,92.591,13.4706807]
[1773671496683,33.17982095,92.72,92.591,13.4706807]
[1773671496984,33.17982095,92.72,92.593,13.4706807]
[1773671497184,33.17982095,92.72,92.595,13.47939376]
[1773671497382,33.17982095,92.72,92.597,13.47939376]
[1773671497592,33.17982095,92.72,92.599,13.47939376]
[1773671497786,33.17982095,92.72,92.601,13.47939376]
[1773671497986,33.17982095,92.72,92.603,13.47939376]
[1773671498183,33.17982095,92.72,92.605,13.48304548]
[1773671498488,33.17982095,92.72,92.607,13.48304548]
[1773671498690,33.17982095,92.72,92.609,13.48304548]
[1773671498990,127.255,92.713,92.61,13.48304548]
[1773671499288,33.17982095,92.72,92.612,13.47692183]
[1773671499592,33.17982095,92.72,92.609,13.47692183]
[1773671499788,33.17982095,92.72,92.611,13.47692183]
[1773671499988,33.17982095,92.72,92.613,13.47692183]
[1773671500185,33.17982095,92.72,92.615,13.47738949]
[1773671500390,33.17982095,92.72,92.616,33.66]
[1773671500994,19.409,92.725,92.617,13.47738949]
[1773671501191,33.17982095,92.7,92.618,33.66]
[1773671501486,19.409,92.725,92.619,13.47968626]
[1773671502093,19.402,92.756,92.619,13.47968626]
[1773671502293,33.17982095,92.72,92.621,13.47958193]
[1773671502490,33.17982095,92.7,92.596,33.66]
[1773671502790,33.17982095,92.7,92.598,13.47958193]
[1773671503097,33.17982095,92.72,92.6,13.47958193]
[1773671503394,33.17982095,92.72,92.602,13.39607493]
[1773671503589,19.411,92.714,92.604,13.39607493]
[1773671503786,19.411,92.714,92.605,33.66]
[1773671503986,19.411,92.714,92.604,13.39607493]
[1773671504195,19.411,92.714,92.605,33.66]
[1773671504388,19.411,92.714,92.604,13.39607493]
[1773671504389,19.411,92.714,92.606,33.66]
[1773671504692,19.411,92.714,92.604,13.39607493]
[1773671504889,19.411,92.714,92.605,33.66]
[1773671505289,19.411,92.714,92.549,189.86]
[1773671505290,19.417,92.685,92.576,13.40769835]
[1773671505485,33.17982095,92.68,92.578,13.40769835]
[1773671505689,33.17982095,92.68,92.58,13.40769835]
[1773671505896,33.17982095,92.71,92.582,13.40769835]
[1773671506096,33.17982095,92.71,92.584,13.41489451]
[1773671506301,33.17982095,92.71,92.586,13.41489451]
[1773671506499,19.412,92.709,92.588,13.41489451]
[1773671506699,19.412,92.709,92.59,13.41489451]
[1773671507100,28.66962647,92.709,92.59,13.41489451]
[1773671507297,33.17982095,92.7,92.592,13.41413785]
[1773671507501,33.17982095,92.7,92.521,32.02]
[1773671507502,33.17982095,92.7,92.594,13.41413785]
[1773671507698,33.17982095,92.7,92.596,13.41413785]
[1773671508004,33.17982095,92.73,92.608,13.41413785]
[1773671508302,33.17982095,92.73,92.61,13.41370216]
[1773671508604,33.17982095,92.73,92.612,13.41370216]
[1773671508803,33.66,92.769,92.614,13.41370216]
[1773671508804,33.17982095,92.7,92.614,13.41370216]
[1773671509197,19.408,92.729,92.614,13.41370216]
[1773671509395,19.402,92.757,92.614,13.41370216]
[1773671509598,33.17982095,92.73,92.616,13.3708858]
[1773671509803,33.17982095,92.73,92.618,13.3708858]
[1773671510004,33.17982095,92.73,92.62,13.3708858]
[1773671510200,33.17982095,92.73,92.622,13.3696045]
[1773671510400,33.17982095,92.73,92.566,19.442]
[1773671510401,19.408,92.728,92.538,13.3696045]
[1773671510595,19.408,92.728,92.551,13.3696045]
[1773671510796,19.408,92.728,92.553,13.3696045]
[1773671510997,19.408,92.728,92.619,13.3696045]
[1773671511205,19.408,92.728,92.621,13.42066897]
[1773671511505,19.408,92.728,92.565,19.442]
[1773671511506,19.408,92.728,92.623,13.42066897]
[1773671511806,19.408,92.728,92.625,13.42066897]
[1773671512106,19.408,92.728,92.63,13.42066897]
[1773671512403,33.17982095,92.73,92.632,13.44206947]
[1773671512608,33.17982095,92.73,92.634,13.44206947]
[1773671512810,33.17982095,92.73,92.607,13.44206947]
[1773671512811,19.409,92.725,92.607,13.44206947]
[1773671513009,33.17982095,92.7,92.609,13.43699696]
[1773671513214,33.17982095,92.7,92.613,13.43699696]
[1773671513415,33.17982095,92.7,92.615,13.43699696]
[1773671513615,33.17982095,92.7,92.617,13.43699696]
[1773671514613,33.17982095,92.7,92.618,33.66]
[1773671515112,33.17982095,92.68,92.591,13.44046396]
[1773671515414,33.17982095,92.68,92.593,13.44046396]
[1773671515609,33.17982095,92.68,92.595,13.44046396]
[1773671515810,33.17982095,92.68,92.597,13.44046396]
[1773671516011,33.17982095,92.68,92.599,13.44046396]
[1773671516414,19.418,92.679,92.572,13.42888797]
[1773671517317,33.17982095,92.65,92.563,13.44292675]
[1773671517527,33.17982095,92.68,92.578,13.44292675]
[1773671517713,33.17982095,92.68,92.577,2.16]
[1773671517714,33.17982095,92.68,92.58,13.44292675]
[1773671517910,33.17982095,92.68,92.593,13.44124083]
[1773671518113,33.17982095,92.71,92.593,13.44124083]
[1773671518314,33.17982095,92.73,92.593,13.44124083]
[1773671518523,33.17982095,92.73,92.624,13.44124083]
[1773671518713,33.17982095,92.73,92.626,13.44124083]
[1773671518912,33.17982095,92.73,92.628,13.44124083]
[1773671519119,33.17982095,92.73,92.63,13.44434331]
[1773671519314,33.17982095,92.73,92.632,13.44434331]
[1773671519626,33.17982095,92.73,92.634,13.44434331]
[1773671519820,33.17982095,92.73,92.636,13.44434331]
[1773671520018,33.17982095,92.73,92.638,13.44434331]
[1773671520721,9.23972904,92.774,92.59,33.17982095]
[1773671520722,33.17982095,92.75,92.64,13.43041726]
[1773671520925,33.17982095,92.75,92.642,13.43041726]
[1773671521922,33.17982095,92.75,92.644,13.43030806]
[1773671522124,33.17982095,92.75,92.61,33.17982095]
[1773671522125,33.17982095,92.75,92.646,13.43011787]
[1773671522426,33.17982095,92.75,92.648,13.43011787]
[1773671522625,33.17982095,92.8,92.678,13.43011787]
[1773671522824,33.17982095,92.77,92.678,13.43011787]
[1773671523021,9.50602246,92.798,92.682,13.4227522]
[1773671523227,9.50602246,92.799,92.682,13.4227522]
[1773671523421,33.17982095,92.8,92.682,13.4227522]
[1773671523622,33.17982095,92.83,92.711,13.4227522]
[1773671523818,19.387,92.829,92.711,13.4227522]
[1773671524018,19.387,92.829,92.713,13.41810573]
[1773671524019,9.51754071,92.828,92.713,13.41810573]
[1773671524228,28.00967157,92.829,92.65,33.17982095]
[1773671524229,37.52721228,92.829,92.715,13.41810573]
[1773671524423,9.51754071,92.829,92.717,13.41810573]
[1773671524620,9.51754071,92.829,92.732,13.41810573]
[1773671524825,18.15115211,92.849,92.734,13.41810573]
[1773671525026,18.15115211,92.849,92.736,13.41810573]
[1773671525220,9.51754071,92.849,92.736,13.41810573]
[1773671525422,9.51754071,92.86,92.74,13.41607214]
[1773671525628,18.13614415,92.879,92.74,13.41607214]
[1773671525823,9.51754071,92.878,92.74,13.41607214]
[1773671526030,8.61860344,92.879,92.756,13.38138985]
[1773671526031,9.51754071,92.877,92.756,13.38138985]
[1773671526229,9.51754071,92.878,92.758,13.38138985]
[1773671526431,18.1349077,92.879,92.76,13.38138985]
[1773671526633,9.51754071,92.879,92.762,13.38138985]
[1773671526832,12.69405469,92.939,92.704,189.84]
[1773671526833,9.51754071,92.892,92.764,13.38138985]
[1773671527034,18.13614324,92.909,92.766,13.38168922]
[1773671527530,19.371,92.905,92.766,13.38168922]
[1773671527730,18.13614324,92.909,92.768,13.38168922]
[1773671528027,18.13614324,92.909,92.77,13.38168922]
[1773671528222,8.61860253,92.909,92.772,13.3887638]
[1773671528422,17.41620106,92.924,92.774,13.3887638]
[1773671528622,21.99611279,92.92,92.776,15.5437638]
[1773671528827,8.61860253,92.94,92.791,13.3887638]
[1773671529023,9.60426923,92.973,92.79,21.99611279]
[1773671529024,21.99611279,92.95,92.793,13.38919106]
[1773671529231,21.99611279,92.95,92.83,13.38919106]
[1773671529432,8.61860253,92.982,92.832,13.38919106]
[1773671529727,21.99611279,92.98,92.834,13.38919106]
[1773671530132,21.99611279,92.98,92.836,13.40798206]
[1773671530329,21.99611279,92.98,92.841,13.40798206]
[1773671530534,21.99611279,92.98,92.843,13.40798206]
[1773671530729,21.99611279,92.95,92.845,13.40798206]
[1773671530929,21.99611279,92.95,92.847,13.40798206]
[1773671531235,21.99611279,92.97,92.849,13.44720299]
[1773671531429,21.99611279,92.97,92.851,13.44720299]
[1773671531631,21.99611279,92.94,92.851,13.44720299]
[1773671531928,21.99611279,92.96,92.851,13.44720299]
[1773671532933,21.99611279,92.98,92.851,13.44720299]
[1773671533132,21.99611279,92.98,92.853,13.47623117]
[1773671533330,21.99611279,92.98,92.855,13.47623117]
[1773671533531,21.99611279,92.97,92.857,13.47623117]
[1773671533725,21.99611279,93.03,92.871,13.47623117]
[1773671533931,21.99611279,93.03,92.873,13.47623117]
[1773671534331,21.99611279,93.03,92.908,13.51443014]
[1773671534528,21.99611279,93.03,92.91,13.51443014]
[1773671534733,21.99611279,93.03,92.912,13.51443014]
[1773671534931,21.99611279,93.03,92.87,21.99611279]
[1773671534932,21.99611279,93.0,92.914,13.51443014]
[1773671535333,21.99611279,93.03,92.914,13.51443014]
[1773671535530,21.99611279,93.0,92.914,13.51443014]
[1773671536238,21.99611279,93.0,92.89,13.529348]
[1773671536435,21.99611279,93.0,92.891,33.66]
[1773671536635,21.99611279,93.0,92.89,13.529348]
[1773671536833,19.354,92.99,92.89,13.529348]
[1773671537032,21.99611279,93.0,92.89,13.529348]
[1773671538734,33.66,93.028,92.892,13.53036425]
[1773671538929,33.66,93.028,92.894,13.52107614]
[1773671539133,33.66,93.028,92.896,13.52107614]
[1773671539335,33.66,93.028,92.898,13.52107614]
[1773671539538,261.37856358,93.037,92.898,13.52107614]
[1773671539733,261.37856358,93.037,92.924,13.52107614]
[1773671540038,21.99611279,93.05,92.926,13.52107614]
[1773671540633,107.443,93.059,92.926,13.52107614]
[1773671540834,21.99611279,93.03,92.926,13.52107614]
[1773671542039,21.99611279,93.03,92.903,13.50692626]
[1773671542232,21.99611279,93.03,92.905,13.50692626]
[1773671542438,21.99611279,93.03,92.907,13.50692626]
[1773671542633,21.99611279,93.03,92.906,33.66]
[1773671542634,21.99611279,93.03,92.909,13.50692626]
[1773671542839,21.99611279,93.06,92.93,13.50692626]
[1773671543041,21.99611279,93.06,92.932,13.51829822]
[1773671543337,21.99611279,93.07,92.934,13.51829822]
[1773671543542,107.433,93.067,92.951,13.51829822]
[1773671543841,21.99611279,93.04,92.951,13.51829822]
[1773671544031,19.338,93.066,92.951,13.51829822]
[1773671544433,19.338,93.066,92.91,21.99611279]
[1773671544434,19.338,93.066,92.953,13.51944399]
[1773671544739,19.338,93.066,92.955,13.51944399]
[1773671545039,21.99611279,93.07,92.957,13.51944399]
[1773671545241,21.99611279,93.07,92.959,13.5344527]
[1773671545543,21.99611279,93.07,92.961,13.5344527]
[1773671545745,21.99611279,93.07,92.963,13.5344527]
[1773671546736,19.331,93.097,92.965,13.50989385]
[1773671546944,19.336,93.075,92.967,13.50989385]
[1773671547937,21.99611279,93.08,92.967,13.50989385]
[1773671548544,33.66,93.101,92.967,13.50989385]
[1773671548545,19.334,93.085,92.967,13.50989385]
[1773671549142,21.99611279,93.06,92.967,13.50989385]
[1773671549342,21.99611279,93.06,92.9,21.99611279]
[1773671549343,19.341,93.052,92.941,13.50888836]
[1773671549843,21.99611279,93.05,92.941,13.50888836]
[1773671550435,41.33111279,93.08,92.941,13.50888836]
[1773671550948,21.99611279,93.05,92.941,13.50888836]
[1773671551542,21.99611279,93.02,92.867,13.57825019]
[1773671551742,21.99611279,93.02,92.886,13.57825019]
[1773671552345,19.348,93.018,92.888,13.57948277]
[1773671552546,33.66,93.028,92.89,13.57948277]
[1773671552745,33.66,93.028,92.889,33.68]
[1773671552746,33.66,93.028,92.892,13.57948277]
[1773671552940,21.99611279,93.04,92.894,13.57948277]
[1773671553246,21.99611279,93.04,92.92,13.57080978]
[1773671553945,33.68,93.072,92.943,13.57080978]
[1773671553946,21.99611279,93.07,92.943,13.57080978]
[1773671554645,19.336,93.073,92.966,13.54076906]
[1773671555552,107.353,93.136,92.966,13.54076906]
[1773671555553,21.99611279,93.08,92.966,13.54076906]
[1773671555740,19.331,93.099,92.966,13.54076906]
[1773671556139,107.274,93.205,92.981,13.53767034]
[1773671556345,19.325,93.126,92.981,13.53767034]
[1773671556544,107.336,93.151,92.983,13.53767034]
[1773671556545,21.99611279,93.1,92.983,13.53767034]
[1773671556748,19.331,93.099,92.983,13.53767034]
[1773671557152,19.331,93.099,92.984,13.53760033]
[1773671558958,8.80324844,93.07,92.984,13.53760033]
[1773671560649,8.80324844,93.05,92.984,13.53760033]
[1773671560958,8.80324844,93.07,92.984,13.53760033]
[1773671561554,8.80324844,93.06,92.984,13.53760033]
[1773671561944,8.80324844,93.08,92.984,13.53760033]
[1773671562548,8.80324844,93.06,92.984,13.53760033]
[1773671562852,19.331,93.099,92.984,13.53760033]
[1773671563256,8.80324844,93.08,92.984,13.53760033]
[1773671563556,8.80324844,93.09,92.984,13.53760033]
[1773671563956,8.80324844,93.07,92.984,13.53760033]
[1773671569857,8.80324844,93.07,92.986,13.52944614]
[1773671570051,8.577492,93.102,92.99,8.80324844]
[1773671570358,8.80324844,93.1,92.991,13.53311024]
[1773671571561,8.80324844,93.1,93.0,13.53303589]
[1773671571958,17.38074044,93.12,93.0,13.53303589]
[1773671572162,8.80324844,93.12,93.018,13.52706522]
[1773671572456,8.80324844,93.1,93.02,13.52706522]
[1773671573059,8.80324844,93.08,93.02,13.52706522]
[1773671575251,8.80324844,93.08,92.994,33.7]
[1773671575458,8.80324844,93.08,92.859,206.63397459]
[1773671575459,19.336,93.077,92.995,13.54970629]
[1773671575653,8.80324844,93.06,92.995,13.54970629]
[1773671576058,8.80324844,93.06,92.974,13.54953983]
[1773671576468,8.80324844,93.07,92.974,13.54953983]
[1773671576764,19.338,93.067,92.974,13.54953983]
[1773671576968,8.80324844,93.05,92.974,13.54953983]
[1773671578058,8.577492,93.049,92.974,13.54953983]
[1773671578263,8.577492,93.048,92.974,13.54953983]
[1773671578460,8.577492,93.047,92.974,13.54953983]
[1773671578661,8.577492,93.046,92.974,13.54953983]
[1773671578863,8.577492,93.045,92.974,13.54953983]
[1773671579063,8.80324844,93.03,92.953,13.56390073]
[1773671579259,8.577492,93.029,92.953,13.56390073]
[1773671579459,8.577492,93.028,92.953,13.56390073]
[1773671579658,8.80324844,93.03,92.953,13.56390073]
[1773671579659,8.577492,93.027,92.953,13.56390073]
[1773671579854,8.577492,93.026,92.953,13.56390073]
[1773671580059,8.577492,93.025,92.953,13.56390073]
[1773671580259,8.577492,93.024,92.953,13.56390073]
[1773671580460,8.577492,93.023,92.927,13.58212112]
[1773671580766,8.80324844,93.01,92.927,13.58212112]
[1773671580963,8.80324844,93.03,92.927,13.58212112]
[1773671581169,8.577492,93.04,92.941,13.58991704]
[1773671581369,8.577492,93.049,92.948,13.58991704]
[1773671581568,8.80324844,93.04,92.948,13.58991704]
[1773671582069,8.577492,93.039,92.948,13.58991704]
[1773671582264,8.80324844,93.02,92.948,13.58991704]
[1773671584271,8.80324844,93.0,92.909,13.56800389]
[1773671584473,8.80324844,93.0,92.914,13.56800389]
[1773671584666,8.80324844,93.02,92.914,13.56800389]
[1773671584866,8.80324844,93.02,92.927,13.56800389]
[1773671585067,17.52825247,93.036,92.941,13.56827356]
[1773671585273,8.577492,93.049,92.953,13.56827356]
[1773671585577,8.80324844,93.06,92.94,8.80324844]
[1773671585578,8.577492,93.059,92.955,13.56827356]
[1773671585866,8.577492,93.058,92.959,13.56827356]
[1773671586070,8.577492,93.057,92.959,13.56827356]
[1773671586267,8.577492,93.056,92.959,13.56827356]
[1773671586465,8.80324844,93.04,92.959,13.56827356]
[1773671586673,8.80324844,93.02,92.937,13.57520838]
[1773671586872,8.577492,93.019,92.937,13.57520838]
[1773671587170,8.80324844,93.0,92.937,13.57520838]
[1773671587374,8.80324844,93.0,92.914,13.56425614]
[1773671588576,8.80324844,92.98,92.914,13.56425614]
[1773671588774,8.82093693,92.98,92.914,13.56425614]
[1773671589370,8.82093693,92.96,92.888,13.55816957]